[Event "*** SCC Grand Prix: Titled Tuesday Blitz"]
[Site "Chess.com"]
[Date "2020.09.29"]
[Round "8"]
[White "Jospem"]
[Black "Barys1974"]
[Result "1-0"]
[WhiteElo "2952"]
[BlackElo "2637"]
[TimeControl "180+1"]
[EndTime "11:33:34 PDT"]
[Termination "Jospem won by resignation"]

1. e4 {[%clk 0:03:00.9]} 1... c5 {[%clk 0:02:59.7]} 2. Nf3 {[%clk 0:03:01]} 2...
d6 {[%clk 0:02:59.7]} 3. c3 {[%clk 0:03:01.6]} 3... Nf6 {[%clk 0:02:57.5]} 4. h3
{[%clk 0:03:02.1]} 4... g6 {[%clk 0:02:51]} 5. Bd3 {[%clk 0:03:02.2]} 5... Bg7
{[%clk 0:02:50.8]} 6. Bc2 {[%clk 0:03:02.3]} 6... O-O {[%clk 0:02:43.9]} 7. O-O
{[%clk 0:03:02.3]} 7... Nc6 {[%clk 0:02:43.7]} 8. d4 {[%clk 0:03:02.4]} 8...
cxd4 {[%clk 0:02:36.4]} 9. cxd4 {[%clk 0:03:03.3]} 9... e5 {[%clk 0:02:36.9]}
10. d5 {[%clk 0:03:03.9]} 10... Nb4 {[%clk 0:02:37.2]} 11. Nc3 {[%clk
0:03:04.5]} 11... Nxc2 {[%clk 0:02:36.5]} 12. Qxc2 {[%clk 0:03:05.4]} 12... Nh5
{[%clk 0:02:28.6]} 13. Bg5 {[%clk 0:02:42.8]} 13... Qe8 {[%clk 0:02:22.2]} 14.
Qb3 {[%clk 0:02:37.5]} 14... a6 {[%clk 0:02:12.7]} 15. Qb6 {[%clk 0:02:21.2]}
15... f6 {[%clk 0:02:02.7]} 16. Be3 {[%clk 0:02:20.9]} 16... Qd7 {[%clk
0:01:50.8]} 17. Rac1 {[%clk 0:02:03.5]} 17... Rf7 {[%clk 0:01:46.1]} 18. Ne2
{[%clk 0:01:57.2]} 18... Bf8 {[%clk 0:01:18.7]} 19. Rc2 {[%clk 0:01:51.9]} 19...
Qa4 {[%clk 0:01:16.8]} 20. Rfc1 {[%clk 0:01:40.3]} 20... Bd7 {[%clk 0:00:56.2]}
21. Nd2 {[%clk 0:01:39.8]} 21... Qb5 {[%clk 0:00:51.9]} 22. Nc4 {[%clk
0:01:31.2]} 22... Rc8 {[%clk 0:00:42.8]} 23. b3 {[%clk 0:01:16.9]} 23... f5
{[%clk 0:00:36.1]} 24. Qa7 {[%clk 0:00:50]} 24... Qb4 {[%clk 0:00:20]} 25. Qb6
{[%clk 0:00:32.3]} 25... Qb5 {[%clk 0:00:19.5]} 26. Nc3 {[%clk 0:00:30.2]} 26...
Qxb6 {[%clk 0:00:14.8]} 27. Nxb6 {[%clk 0:00:31.1]} 27... Rc7 {[%clk 0:00:12.6]}
28. f3 {[%clk 0:00:26.2]} 28... Be8 {[%clk 0:00:10.2]} 29. Ne2 {[%clk
0:00:20.7]} 29... Rxc2 {[%clk 0:00:08.7]} 30. Rxc2 {[%clk 0:00:21.6]} 30... fxe4
{[%clk 0:00:08.6]} 31. fxe4 {[%clk 0:00:21.7]} 31... Nf6 {[%clk 0:00:09.2]} 32.
Rc8 {[%clk 0:00:12.3]} 32... Bb5 {[%clk 0:00:07.8]} 33. Nc3 {[%clk 0:00:12.6]}
33... Bd3 {[%clk 0:00:08]} 34. Bh6 {[%clk 0:00:12.4]} 34... Nxe4 {[%clk
0:00:07.1]} 35. Nxe4 {[%clk 0:00:10.5]} 35... Bxe4 {[%clk 0:00:07.1]} 36. Nd7
{[%clk 0:00:11.1]} 36... Bf5 {[%clk 0:00:07]} 37. Rxf8+ {[%clk 0:00:10.6]} 37...
Rxf8 {[%clk 0:00:06.9]} 38. Nxf8 {[%clk 0:00:11.5]} 38... Kf7 {[%clk 0:00:06.7]}
39. Kf2 {[%clk 0:00:09.8]} 39... b5 {[%clk 0:00:06.7]} 40. Ke3 {[%clk
0:00:08.8]} 40... b4 {[%clk 0:00:07.1]} 41. g4 {[%clk 0:00:08.5]} 41... Bc8
{[%clk 0:00:05.1]} 42. Kd3 {[%clk 0:00:05.3]} 42... a5 {[%clk 0:00:05.5]} 43.
Ne6 {[%clk 0:00:04.2]} 43... Bxe6 {[%clk 0:00:03.8]} 44. dxe6+ {[%clk
0:00:05.1]} 44... Kxe6 {[%clk 0:00:04.4]} 45. Be3 {[%clk 0:00:05.8]} 45... d5
{[%clk 0:00:04.7]} 46. Bb6 {[%clk 0:00:06.6]} 46... d4 {[%clk 0:00:04.3]} 47.
Bxa5 {[%clk 0:00:07.1]} 1-0

[Event "*** SCC Grand Prix: Titled Tuesday Blitz"]
[Site "Chess.com"]
[Date "2020.09.29"]
[Round "8"]
[White "SharapovEvgeny"]
[Black "Srisshhhtea"]
[Result "1-0"]
[WhiteElo "2481"]
[BlackElo "2299"]
[TimeControl "180+1"]
[EndTime "11:33:36 PDT"]
[Termination "SharapovEvgeny won by resignation"]

1. c4 {[%clk 0:02:59.1]} 1... Nf6 {[%clk 0:02:59.5]} 2. Nc3 {[%clk 0:02:58.9]}
2... g6 {[%clk 0:02:59.9]} 3. g3 {[%clk 0:02:58.8]} 3... Bg7 {[%clk 0:03:00.1]}
4. Bg2 {[%clk 0:02:58.9]} 4... O-O {[%clk 0:03:00.8]} 5. e3 {[%clk 0:02:59]}
5... c6 {[%clk 0:02:57.5]} 6. Nge2 {[%clk 0:02:58.5]} 6... d5 {[%clk 0:02:55.5]}
7. cxd5 {[%clk 0:02:58.1]} 7... cxd5 {[%clk 0:02:56.4]} 8. d4 {[%clk 0:02:57.7]}
8... Nc6 {[%clk 0:02:56.5]} 9. O-O {[%clk 0:02:56.1]} 9... b6 {[%clk 0:02:54.6]}
10. Nf4 {[%clk 0:02:55]} 10... e6 {[%clk 0:02:54]} 11. b3 {[%clk 0:02:53.7]}
11... Bb7 {[%clk 0:02:53.2]} 12. Ba3 {[%clk 0:02:52.7]} 12... Re8 {[%clk
0:02:52.8]} 13. Qd2 {[%clk 0:02:51.7]} 13... Rc8 {[%clk 0:02:51.9]} 14. Rfc1
{[%clk 0:02:50.7]} 14... Ba6 {[%clk 0:02:34.6]} 15. Rc2 {[%clk 0:02:48.3]} 15...
Bf8 {[%clk 0:02:28.8]} 16. Bxf8 {[%clk 0:02:45.5]} 16... Rxf8 {[%clk 0:02:29.7]}
17. Nd1 {[%clk 0:02:20.9]} 17... Qd6 {[%clk 0:02:22]} 18. Rac1 {[%clk
0:02:17.6]} 18... Ne7 {[%clk 0:02:18.4]} 19. Rxc8 {[%clk 0:02:12.7]} 19... Rxc8
{[%clk 0:02:17.6]} 20. Rxc8+ {[%clk 0:02:12]} 20... Nxc8 {[%clk 0:02:17]} 21.
Qc3 {[%clk 0:01:58.6]} 21... Ne7 {[%clk 0:02:08.8]} 22. b4 {[%clk 0:01:46.5]}
22... Qc6 {[%clk 0:02:02.6]} 23. Qxc6 {[%clk 0:01:45.5]} 23... Nxc6 {[%clk
0:02:02.6]} 24. a3 {[%clk 0:01:45.2]} 24... Bb5 {[%clk 0:01:52]} 25. Nc3 {[%clk
0:01:43.9]} 25... Bc4 {[%clk 0:01:51.5]} 26. h4 {[%clk 0:01:38.4]} 26... a5
{[%clk 0:01:50.9]} 27. bxa5 {[%clk 0:01:32.4]} 27... bxa5 {[%clk 0:01:48.1]} 28.
Bf1 {[%clk 0:01:16]} 28... Bxf1 {[%clk 0:01:44.7]} 29. Kxf1 {[%clk 0:01:15.6]}
29... Kf8 {[%clk 0:01:42.5]} 30. Ke2 {[%clk 0:01:15.2]} 30... Ke7 {[%clk
0:01:42.9]} 31. f3 {[%clk 0:01:14.5]} 31... Nd7 {[%clk 0:01:40.1]} 32. Nd3
{[%clk 0:01:13.6]} 32... Nb6 {[%clk 0:01:33.4]} 33. Nc5 {[%clk 0:01:12.8]} 33...
h6 {[%clk 0:01:18.3]} 34. Kd3 {[%clk 0:01:10.2]} 34... g5 {[%clk 0:01:08]} 35.
h5 {[%clk 0:01:07.4]} 35... f5 {[%clk 0:00:59.4]} 36. e4 {[%clk 0:01:01.8]}
36... dxe4+ {[%clk 0:00:58.7]} 37. fxe4 {[%clk 0:01:01.5]} 37... g4 {[%clk
0:00:33.1]} 38. exf5 {[%clk 0:00:52.9]} 38... exf5 {[%clk 0:00:33]} 39. d5
{[%clk 0:00:47.8]} 39... Ne5+ {[%clk 0:00:28.7]} 40. Kd4 {[%clk 0:00:44.7]}
40... Nf3+ {[%clk 0:00:27.9]} 41. Ke3 {[%clk 0:00:44.4]} 41... Nc4+ {[%clk
0:00:19.7]} 42. Kf4 {[%clk 0:00:43.8]} 42... Nxa3 {[%clk 0:00:20]} 43. Kxf5
{[%clk 0:00:41.2]} 43... Nc4 {[%clk 0:00:12.6]} 44. Kxg4 {[%clk 0:00:37.3]}
44... Nfe5+ {[%clk 0:00:12.7]} 45. Kf5 {[%clk 0:00:36]} 45... Nd7 {[%clk
0:00:11.7]} 46. Nxd7 {[%clk 0:00:34.9]} 46... Kxd7 {[%clk 0:00:12.6]} 47. Kg6
{[%clk 0:00:35.1]} 47... Ne3 {[%clk 0:00:12.1]} 48. Kxh6 {[%clk 0:00:31.9]}
48... Ng4+ {[%clk 0:00:03.6]} 49. Kg5 {[%clk 0:00:27.8]} 49... Ne5 {[%clk
0:00:03.6]} 50. h6 {[%clk 0:00:27.5]} 50... Ke7 {[%clk 0:00:03.5]} 51. h7 {[%clk
0:00:26.7]} 51... Kd6 {[%clk 0:00:02.4]} 52. Kf6 {[%clk 0:00:24.5]} 52... Nd7+
{[%clk 0:00:01.9]} 53. Kf7 {[%clk 0:00:23.7]} 53... Ne5+ {[%clk 0:00:02.1]} 54.
Kg7 {[%clk 0:00:23.6]} 1-0

[Event "*** SCC Grand Prix: Titled Tuesday Blitz"]
[Site "Chess.com"]
[Date "2020.09.29"]
[Round "8"]
[White "Konavets"]
[Black "TrimitziosP7"]
[Result "0-1"]
[WhiteElo "2960"]
[BlackElo "2843"]
[TimeControl "180+1"]
[EndTime "11:33:37 PDT"]
[Termination "TrimitziosP7 won on time"]

1. e4 {[%clk 0:02:57.9]} 1... e5 {[%clk 0:03:00.2]} 2. Nf3 {[%clk 0:02:57.5]}
2... Nf6 {[%clk 0:02:59.8]} 3. d4 {[%clk 0:02:54.6]} 3... Nxe4 {[%clk
0:02:53.7]} 4. Bd3 {[%clk 0:02:54.7]} 4... d5 {[%clk 0:02:51.9]} 5. dxe5 {[%clk
0:02:54.5]} 5... Be7 {[%clk 0:02:49.1]} 6. O-O {[%clk 0:02:54.5]} 6... O-O
{[%clk 0:02:48.8]} 7. c4 {[%clk 0:02:55.2]} 7... c6 {[%clk 0:02:41]} 8. cxd5
{[%clk 0:02:54.1]} 8... cxd5 {[%clk 0:02:41.9]} 9. Nbd2 {[%clk 0:02:50.6]} 9...
Nc5 {[%clk 0:02:39.6]} 10. Bc2 {[%clk 0:02:47.4]} 10... Nc6 {[%clk 0:02:37.5]}
11. Nb3 {[%clk 0:02:47.6]} 11... Ne6 {[%clk 0:02:33.2]} 12. Re1 {[%clk
0:02:46.2]} 12... a5 {[%clk 0:02:29.2]} 13. a3 {[%clk 0:02:29.1]} 13... d4
{[%clk 0:02:15.9]} 14. Qd3 {[%clk 0:02:25.3]} 14... g6 {[%clk 0:02:15.4]} 15.
Bh6 {[%clk 0:02:25.2]} 15... Re8 {[%clk 0:02:14.7]} 16. Rad1 {[%clk 0:02:22.5]}
16... Qb6 {[%clk 0:02:08.4]} 17. Qf1 {[%clk 0:01:52.8]} 17... Bd7 {[%clk
0:02:02.9]} 18. h4 {[%clk 0:01:47.5]} 18... Rac8 {[%clk 0:01:55.5]} 19. Nbd2
{[%clk 0:01:47.6]} 19... Qxb2 {[%clk 0:01:50.6]} 20. Bd3 {[%clk 0:01:47.7]}
20... Qxa3 {[%clk 0:01:47.8]} 21. Ne4 {[%clk 0:01:46.6]} 21... Nc5 {[%clk
0:01:24.9]} 22. Bc1 {[%clk 0:01:36.6]} 22... Qa4 {[%clk 0:01:16.4]} 23. Nf6+
{[%clk 0:01:30.4]} 23... Bxf6 {[%clk 0:01:14.4]} 24. exf6 {[%clk 0:01:31.3]}
24... Nxd3 {[%clk 0:01:11]} 25. Qxd3 {[%clk 0:01:31]} 25... Bg4 {[%clk
0:01:03.2]} 26. Ba3 {[%clk 0:01:13.3]} 26... Bxf3 {[%clk 0:00:49.9]} 27. Qxf3
{[%clk 0:01:11.5]} 27... h6 {[%clk 0:00:43.2]} 28. Bd6 {[%clk 0:01:08.8]} 28...
Qb5 {[%clk 0:00:37.2]} 29. g4 {[%clk 0:01:03.3]} 29... Kh7 {[%clk 0:00:31.3]}
30. Rb1 {[%clk 0:00:59.1]} 30... Rxe1+ {[%clk 0:00:30.8]} 31. Rxe1 {[%clk
0:01:00]} 31... h5 {[%clk 0:00:31.1]} 32. Re7 {[%clk 0:00:31.4]} 32... Nxe7
{[%clk 0:00:26.1]} 33. fxe7 {[%clk 0:00:32.3]} 33... Qc4 {[%clk 0:00:21.2]} 34.
gxh5 {[%clk 0:00:25.6]} 34... Qe6 {[%clk 0:00:20.2]} 35. hxg6+ {[%clk
0:00:19.1]} 35... Qxg6+ {[%clk 0:00:19.5]} 36. Bg3 {[%clk 0:00:19.3]} 36... Re8
{[%clk 0:00:19.6]} 37. Qxb7 {[%clk 0:00:17.5]} 37... Qe6 {[%clk 0:00:19.5]} 38.
Qb5 {[%clk 0:00:15.2]} 38... Rxe7 {[%clk 0:00:17.7]} 39. Qh5+ {[%clk 0:00:15.2]}
39... Qh6 {[%clk 0:00:17.7]} 40. Qxa5 {[%clk 0:00:12.8]} 40... Qg6 {[%clk
0:00:12.5]} 41. h5 {[%clk 0:00:09.7]} 41... Qe4 {[%clk 0:00:12]} 42. Qg5 {[%clk
0:00:07.7]} 42... Re6 {[%clk 0:00:09.6]} 43. Qd8 {[%clk 0:00:05.6]} 43... d3
{[%clk 0:00:08.6]} 44. Qd7 {[%clk 0:00:06]} 44... Re7 {[%clk 0:00:08.1]} 45. Qd6
{[%clk 0:00:03.4]} 45... Qe1+ {[%clk 0:00:07.5]} 46. Kh2 {[%clk 0:00:02.8]}
46... Qe4 {[%clk 0:00:06.7]} 47. Kg1 {[%clk 0:00:02.1]} 47... Re6 {[%clk
0:00:05.5]} 48. Qd7 {[%clk 0:00:02.1]} 48... Qf5 {[%clk 0:00:05.5]} 49. Qd4
{[%clk 0:00:02]} 49... Re1+ {[%clk 0:00:04.3]} 0-1

[Event "*** SCC Grand Prix: Titled Tuesday Blitz"]
[Site "Chess.com"]
[Date "2020.09.29"]
[Round "8"]
[White "FairChess_on_YouTube"]
[Black "Gajuchess"]
[Result "1/2-1/2"]
[WhiteElo "2929"]
[BlackElo "2818"]
[TimeControl "180+1"]
[EndTime "11:33:38 PDT"]
[Termination "Game drawn - insufficient material"]

1. d4 {[%clk 0:02:59.8]} 1... Nf6 {[%clk 0:02:59.8]} 2. Bg5 {[%clk 0:02:58.7]}
2... d5 {[%clk 0:02:59.5]} 3. Nd2 {[%clk 0:02:58.3]} 3... c5 {[%clk 0:02:58.3]}
4. dxc5 {[%clk 0:02:58.1]} 4... e6 {[%clk 0:02:58.8]} 5. e4 {[%clk 0:02:58]}
5... Bxc5 {[%clk 0:02:59.1]} 6. Qe2 {[%clk 0:02:56.4]} 6... Be7 {[%clk
0:02:55.3]} 7. O-O-O {[%clk 0:02:54.7]} 7... Nc6 {[%clk 0:02:50.5]} 8. f4 {[%clk
0:02:54.6]} 8... Qa5 {[%clk 0:02:46.3]} 9. Kb1 {[%clk 0:02:50.9]} 9... dxe4
{[%clk 0:02:38.3]} 10. Nxe4 {[%clk 0:02:34]} 10... Nxe4 {[%clk 0:02:37.4]} 11.
Qxe4 {[%clk 0:02:34.9]} 11... Bxg5 {[%clk 0:02:36.8]} 12. fxg5 {[%clk
0:02:35.1]} 12... Qxg5 {[%clk 0:02:33.9]} 13. Nf3 {[%clk 0:02:35.2]} 13... Qc5
{[%clk 0:02:27.2]} 14. Bd3 {[%clk 0:02:02.6]} 14... Bd7 {[%clk 0:02:26.3]} 15.
Qh4 {[%clk 0:01:58.7]} 15... f6 {[%clk 0:02:21.2]} 16. Qg3 {[%clk 0:01:47.9]}
16... Qe7 {[%clk 0:02:00.9]} 17. Qc7 {[%clk 0:01:21.6]} 17... Rc8 {[%clk
0:01:42.4]} 18. Qxb7 {[%clk 0:01:15.8]} 18... Rb8 {[%clk 0:01:43]} 19. Qc7
{[%clk 0:01:07.2]} 19... O-O {[%clk 0:00:40.8]} 20. Bxh7+ {[%clk 0:00:54.2]}
20... Kh8 {[%clk 0:00:35.2]} 21. Rxd7 {[%clk 0:00:40.8]} 21... Qa3 {[%clk
0:00:35.7]} 22. b3 {[%clk 0:00:36.9]} 22... Nb4 {[%clk 0:00:29.4]} 23. Qxa7
{[%clk 0:00:33.6]} 23... Qxa7 {[%clk 0:00:19.7]} 24. Rxa7 {[%clk 0:00:34.5]}
24... Kxh7 {[%clk 0:00:20.6]} 25. Rd1 {[%clk 0:00:32.1]} 25... Nd5 {[%clk
0:00:19.7]} 26. Kb2 {[%clk 0:00:31]} 26... Rfd8 {[%clk 0:00:19.8]} 27. c4 {[%clk
0:00:25.2]} 27... Ne3 {[%clk 0:00:19.8]} 28. Rxd8 {[%clk 0:00:25.1]} 28... Rxd8
{[%clk 0:00:19.9]} 29. c5 {[%clk 0:00:24.9]} 29... e5 {[%clk 0:00:18.9]} 30. b4
{[%clk 0:00:22.9]} 30... e4 {[%clk 0:00:18.8]} 31. Nh4 {[%clk 0:00:19.3]} 31...
Kh6 {[%clk 0:00:16.1]} 32. Re7 {[%clk 0:00:16.3]} 32... g5 {[%clk 0:00:14.5]}
33. Rxe4 {[%clk 0:00:15.1]} 33... Nd1+ {[%clk 0:00:14.7]} 34. Kc2 {[%clk
0:00:14.2]} 34... gxh4 {[%clk 0:00:14.8]} 35. c6 {[%clk 0:00:14.3]} 35... h3
{[%clk 0:00:11.2]} 36. gxh3 {[%clk 0:00:13.2]} 36... Nf2 {[%clk 0:00:10.9]} 37.
c7 {[%clk 0:00:10.1]} 37... Rc8 {[%clk 0:00:10.7]} 38. Rc4 {[%clk 0:00:10.3]}
38... f5 {[%clk 0:00:11]} 39. b5 {[%clk 0:00:10.5]} 39... Ne4 {[%clk 0:00:11.9]}
40. Rxe4 {[%clk 0:00:06.8]} 40... Rxc7+ {[%clk 0:00:10.7]} 41. Kd3 {[%clk
0:00:06.4]} 41... fxe4+ {[%clk 0:00:11.1]} 42. Kxe4 {[%clk 0:00:06.5]} 42... Rc5
{[%clk 0:00:10.8]} 43. a4 {[%clk 0:00:06.5]} 43... Rc4+ {[%clk 0:00:06.5]} 44.
Kd5 {[%clk 0:00:06.9]} 44... Rxa4 {[%clk 0:00:07.4]} 45. b6 {[%clk 0:00:07.2]}
45... Rb4 {[%clk 0:00:07.1]} 46. Kc6 {[%clk 0:00:07.4]} 46... Kh5 {[%clk
0:00:07.3]} 47. b7 {[%clk 0:00:07.8]} 47... Kh4 {[%clk 0:00:07.7]} 48. Kc7
{[%clk 0:00:08.2]} 48... Kxh3 {[%clk 0:00:08]} 49. b8=Q {[%clk 0:00:08]} 49...
Rxb8 {[%clk 0:00:08.1]} 50. Kxb8 {[%clk 0:00:08.9]} 50... Kxh2 {[%clk
0:00:08.5]} 1/2-1/2

[Event "*** SCC Grand Prix: Titled Tuesday Blitz"]
[Site "Chess.com"]
[Date "2020.09.29"]
[Round "8"]
[White "Zkid"]
[Black "jefferyx"]
[Result "1-0"]
[WhiteElo "2843"]
[BlackElo "2944"]
[TimeControl "180+1"]
[EndTime "11:33:40 PDT"]
[Termination "Zkid won on time"]

1. e4 {[%clk 0:03:00.9]} 1... c5 {[%clk 0:02:57.8]} 2. Nf3 {[%clk 0:03:01.1]}
2... d6 {[%clk 0:02:58.5]} 3. d4 {[%clk 0:03:01.2]} 3... Nf6 {[%clk 0:02:58.6]}
4. dxc5 {[%clk 0:02:59.6]} 4... Nxe4 {[%clk 0:02:58.5]} 5. cxd6 {[%clk
0:02:59.7]} 5... Nc6 {[%clk 0:02:59]} 6. Bd3 {[%clk 0:02:58.6]} 6... Nxd6 {[%clk
0:02:59.2]} 7. O-O {[%clk 0:02:57.1]} 7... Bg4 {[%clk 0:02:59.4]} 8. Re1 {[%clk
0:02:48.9]} 8... e6 {[%clk 0:02:59.6]} 9. h3 {[%clk 0:02:47.1]} 9... Bh5 {[%clk
0:03:00.2]} 10. Bf4 {[%clk 0:02:45.8]} 10... Be7 {[%clk 0:03:00.7]} 11. Nbd2
{[%clk 0:02:43.8]} 11... O-O {[%clk 0:03:00.6]} 12. c3 {[%clk 0:02:42.9]} 12...
Bg6 {[%clk 0:03:00.1]} 13. Bf1 {[%clk 0:02:40.1]} 13... Qd7 {[%clk 0:02:26.8]}
14. Nc4 {[%clk 0:02:33.9]} 14... Rad8 {[%clk 0:02:25.1]} 15. Nfe5 {[%clk
0:02:27.1]} 15... Nxe5 {[%clk 0:02:25.2]} 16. Nxe5 {[%clk 0:02:27.1]} 16... Qc8
{[%clk 0:02:25.9]} 17. Nxg6 {[%clk 0:02:20.2]} 17... hxg6 {[%clk 0:02:26.8]} 18.
Qb3 {[%clk 0:02:17.6]} 18... Rd7 {[%clk 0:02:26.9]} 19. Bd3 {[%clk 0:02:03.2]}
19... Rfd8 {[%clk 0:02:26.5]} 20. Rad1 {[%clk 0:01:33.2]} 20... Qc6 {[%clk
0:02:24]} 21. Bxg6 {[%clk 0:01:26.6]} 21... fxg6 {[%clk 0:02:06.2]} 22. Rxe6
{[%clk 0:01:26]} 22... Qc4 {[%clk 0:02:01.5]} 23. Rxg6 {[%clk 0:00:43.5]} 23...
Qxb3 {[%clk 0:01:46.9]} 24. axb3 {[%clk 0:00:44.4]} 24... Ne4 {[%clk 0:01:47.6]}
25. Rxd7 {[%clk 0:00:35.6]} 25... Rxd7 {[%clk 0:01:48.5]} 26. Be3 {[%clk
0:00:35.9]} 26... Bc5 {[%clk 0:01:43.5]} 27. Bxc5 {[%clk 0:00:18.6]} 27... Nxc5
{[%clk 0:01:44.4]} 28. b4 {[%clk 0:00:18.4]} 28... Rd1+ {[%clk 0:01:45]} 29. Kh2
{[%clk 0:00:17.5]} 29... Nd3 {[%clk 0:01:45.9]} 30. Re6 {[%clk 0:00:16.7]} 30...
Kf7 {[%clk 0:00:39.8]} 31. Re2 {[%clk 0:00:16.5]} 31... b5 {[%clk 0:00:40.5]}
32. Kg3 {[%clk 0:00:15.6]} 32... a6 {[%clk 0:00:40.8]} 33. f3 {[%clk 0:00:10.9]}
33... Rb1 {[%clk 0:00:40.8]} 34. Rd2 {[%clk 0:00:10.9]} 34... Nxb2 {[%clk
0:00:40]} 35. Rd7+ {[%clk 0:00:11.2]} 35... Kf8 {[%clk 0:00:37.1]} 36. Ra7
{[%clk 0:00:08.3]} 36... Ra1 {[%clk 0:00:37.2]} 37. Kg4 {[%clk 0:00:07.3]} 37...
Nd1 {[%clk 0:00:37.2]} 38. Kf5 {[%clk 0:00:06.8]} 38... Nxc3 {[%clk 0:00:32.3]}
39. Kg6 {[%clk 0:00:06.5]} 39... Rb1 {[%clk 0:00:27.4]} 40. Rxa6 {[%clk
0:00:04.7]} 40... Rxb4 {[%clk 0:00:24.3]} 41. Ra8+ {[%clk 0:00:05.4]} 41... Ke7
{[%clk 0:00:24.6]} 42. Kxg7 {[%clk 0:00:06.3]} 42... Rb1 {[%clk 0:00:19.7]} 43.
Ra7+ {[%clk 0:00:06.5]} 43... Ke6 {[%clk 0:00:19.4]} 44. g4 {[%clk 0:00:07.3]}
44... b4 {[%clk 0:00:19.8]} 45. f4 {[%clk 0:00:07.4]} 45... b3 {[%clk
0:00:19.2]} 46. f5+ {[%clk 0:00:08.3]} 46... Kd5 {[%clk 0:00:19.2]} 47. f6
{[%clk 0:00:09.2]} 47... b2 {[%clk 0:00:05.1]} 48. f7 {[%clk 0:00:10.1]} 48...
Rf1 {[%clk 0:00:04.7]} 49. Rb7 {[%clk 0:00:10.1]} 49... b1=Q {[%clk 0:00:04.2]}
50. Rxb1 {[%clk 0:00:10.7]} 50... Nxb1 {[%clk 0:00:05.1]} 51. f8=Q {[%clk
0:00:11]} 51... Rxf8 {[%clk 0:00:05]} 52. Kxf8 {[%clk 0:00:11.8]} 52... Ke6
{[%clk 0:00:05.7]} 53. Kg7 {[%clk 0:00:11.9]} 53... Nc3 {[%clk 0:00:06.1]} 54.
h4 {[%clk 0:00:12.5]} 54... Ne4 {[%clk 0:00:05.9]} 55. h5 {[%clk 0:00:12.9]}
55... Nf6 {[%clk 0:00:05.1]} 56. h6 {[%clk 0:00:13.8]} 56... Ne8+ {[%clk
0:00:04]} 57. Kg6 {[%clk 0:00:13.6]} 57... Nd6 {[%clk 0:00:02.2]} 58. h7 {[%clk
0:00:13.4]} 58... Nf7 {[%clk 0:00:03.1]} 59. Kg7 {[%clk 0:00:14]} 59... Ke7
{[%clk 0:00:02]} 60. g5 {[%clk 0:00:14.3]} 1-0

[Event "*** SCC Grand Prix: Titled Tuesday Blitz"]
[Site "Chess.com"]
[Date "2020.09.29"]
[Round "8"]
[White "KarstenHansch"]
[Black "JuliaEfremova"]
[Result "0-1"]
[WhiteElo "2444"]
[BlackElo "2352"]
[TimeControl "180+1"]
[EndTime "11:33:40 PDT"]
[Termination "JuliaEfremova won by resignation"]

1. e4 {[%clk 0:02:40.3]} 1... d5 {[%clk 0:02:58.5]} 2. exd5 {[%clk 0:02:39.9]}
2... Qxd5 {[%clk 0:02:59.4]} 3. Nc3 {[%clk 0:02:40.6]} 3... Qa5 {[%clk
0:02:58.8]} 4. d4 {[%clk 0:02:41]} 4... Nf6 {[%clk 0:02:58.7]} 5. Nf3 {[%clk
0:02:41.3]} 5... Bg4 {[%clk 0:02:58]} 6. Bc4 {[%clk 0:02:41.9]} 6... Nc6 {[%clk
0:02:57.2]} 7. O-O {[%clk 0:02:25.2]} 7... O-O-O {[%clk 0:02:55.5]} 8. Be3
{[%clk 0:02:19.3]} 8... e5 {[%clk 0:02:52.8]} 9. d5 {[%clk 0:02:08.4]} 9... e4
{[%clk 0:02:49.1]} 10. h3 {[%clk 0:01:49.8]} 10... exf3 {[%clk 0:02:41.2]} 11.
hxg4 {[%clk 0:01:49.9]} 11... fxg2 {[%clk 0:02:41.4]} 12. Kxg2 {[%clk
0:01:50.3]} 12... Ne5 {[%clk 0:02:37.2]} 13. Qd4 {[%clk 0:01:45.5]} 13... Nexg4
{[%clk 0:02:08.7]} 14. Qxa7 {[%clk 0:01:38.3]} 14... Nxe3+ {[%clk 0:02:08.5]}
15. Qxe3 {[%clk 0:01:36.9]} 15... Bc5 {[%clk 0:02:07.5]} 16. Qh3+ {[%clk
0:01:34.4]} 16... Kb8 {[%clk 0:02:07.5]} 17. a3 {[%clk 0:01:28.8]} 17... Bd4
{[%clk 0:01:59.1]} 18. b4 {[%clk 0:01:22.4]} 18... Qb6 {[%clk 0:01:50.3]} 19.
Rad1 {[%clk 0:01:20.6]} 19... Bxc3 {[%clk 0:01:36.9]} 20. Qxc3 {[%clk
0:01:21.5]} 20... Ne4 {[%clk 0:01:36.2]} 21. Qf3 {[%clk 0:01:02.2]} 21... Qg6+
{[%clk 0:01:24.1]} 22. Kh1 {[%clk 0:01:02.1]} 22... Rd6 {[%clk 0:01:21.2]} 23.
Rg1 {[%clk 0:00:51.8]} 23... Qh6+ {[%clk 0:01:03]} 24. Kg2 {[%clk 0:00:51.4]}
24... Rg6+ {[%clk 0:01:02.8]} 25. Kf1 {[%clk 0:00:51.7]} 25... Nd2+ {[%clk
0:00:56.6]} 26. Rxd2 {[%clk 0:00:50.8]} 26... Qxd2 {[%clk 0:00:57.4]} 27. Rxg6
{[%clk 0:00:31.4]} 27... fxg6 {[%clk 0:00:53]} 28. Bd3 {[%clk 0:00:22.7]} 28...
Qc1+ {[%clk 0:00:45.8]} 29. Kg2 {[%clk 0:00:22.9]} 29... Qxa3 {[%clk 0:00:44.5]}
30. b5 {[%clk 0:00:23.5]} 30... Rf8 {[%clk 0:00:41.9]} 31. Qh3 {[%clk
0:00:21.4]} 31... Qc5 {[%clk 0:00:39.9]} 32. f3 {[%clk 0:00:20.1]} 32... Qxd5
{[%clk 0:00:38.4]} 33. Be4 {[%clk 0:00:20.5]} 33... Qg5+ {[%clk 0:00:34.9]} 34.
Kf2 {[%clk 0:00:19.9]} 34... h5 {[%clk 0:00:33.2]} 35. Qd7 {[%clk 0:00:19.3]}
35... h4 {[%clk 0:00:32.5]} 36. b6 {[%clk 0:00:19.4]} 36... Qc5+ {[%clk
0:00:30.5]} 37. Kg2 {[%clk 0:00:19.6]} 37... Qxb6 {[%clk 0:00:30.1]} 38. Qxg7
{[%clk 0:00:19.9]} 38... Rd8 {[%clk 0:00:27]} 39. Qe7 {[%clk 0:00:16.9]} 39...
Rd2+ {[%clk 0:00:26]} 40. Kh3 {[%clk 0:00:17.2]} 40... Qd6 {[%clk 0:00:19.5]}
41. Qe8+ {[%clk 0:00:16.1]} 41... Qd8 {[%clk 0:00:20]} 42. Qb5 {[%clk 0:00:12]}
42... c6 {[%clk 0:00:15.1]} 43. Qe5+ {[%clk 0:00:10.9]} 43... Qc7 {[%clk
0:00:13.8]} 44. Qh8+ {[%clk 0:00:11]} 44... Ka7 {[%clk 0:00:13.8]} 45. Qa1+
{[%clk 0:00:08]} 45... Kb8 {[%clk 0:00:14]} 46. Qh8+ {[%clk 0:00:07.8]} 46...
Rd8 {[%clk 0:00:14.5]} 47. Qf6 {[%clk 0:00:07.6]} 47... Qd7+ {[%clk 0:00:13.8]}
48. Kxh4 {[%clk 0:00:07.4]} 48... Qh7+ {[%clk 0:00:12.8]} 49. Kg3 {[%clk
0:00:07.8]} 49... Qc7+ {[%clk 0:00:12.3]} 50. Kg4 {[%clk 0:00:08.2]} 50... Qd7+
{[%clk 0:00:12.3]} 51. Kg5 {[%clk 0:00:08.4]} 51... Qd2+ {[%clk 0:00:11.5]} 52.
Kxg6 {[%clk 0:00:07.7]} 52... Rd6 {[%clk 0:00:11.7]} 0-1